fUSD/lending_fUSD_20251115
["ID","MTS","AMOUNT","RATE_DAILY","PERIOD"]
[394056684,1763235043626,-500.0,0.00016664,2]
[394056685,1763235043636,-500.0,0.00016664,2]
[394056686,1763235043645,-255.49729411,0.00016664,2]
[394056687,1763235043655,-500.0,0.00016664,2]
[394056688,1763235043664,-500.0,0.00016664,2]
[394056689,1763235043674,-7334.89246098,0.00016665,2]
[394056690,1763235043685,-22403.43088889,0.00016665,2]
[394056691,1763235043701,-1483.45419461,0.00016665,2]
[394056692,1763235043712,-1569.24686129,0.00016665,2]
[394056693,1763235046269,-48376.90724099,0.00016665,2]
[394056709,1763235064816,200.0,0.00041422,30]
[394056710,1763235065121,250.0,0.00041422,120]
[394056711,1763235065427,250.0,0.00041422,120]
[394056712,1763235065760,250.0,0.00041422,120]
[394056713,1763235066026,250.0,0.00041422,120]
[394056714,1763235066345,250.0,0.00041422,120]
[394056715,1763235066636,250.0,0.00041422,120]
[394056716,1763235066960,250.0,0.00041422,120]
[394056717,1763235067264,250.0,0.00041422,120]
[394056718,1763235067559,250.0,0.00041422,120]
[394056719,1763235068002,250.0,0.00041422,120]
[394056720,1763235068055,250.0,0.00041422,120]
[394056721,1763235068173,250.0,0.00041422,120]
[394056722,1763235068233,164.29893212,0.00041422,120]
[394056723,1763235068835,250.0,0.00041422,120]
[394056724,1763235068895,250.0,0.00041422,120]
[394056725,1763235069223,250.0,0.00041422,120]
[394056726,1763235069289,250.0,0.00041422,120]
[394056727,1763235069823,250.0,0.00041422,120]
[394056728,1763235070030,250.0,0.00041422,120]
[394056729,1763235070453,250.0,0.00041422,120]
[394056730,1763235070539,250.0,0.00041422,120]
[394056731,1763235071075,250.0,0.00041422,120]
[394056732,1763235071157,250.0,0.00041422,120]
[394056733,1763235071673,250.0,0.00041422,120]
[394056734,1763235071799,250.0,0.00041422,120]
[394056735,1763235072277,250.0,0.00041422,120]
[394056736,1763235072427,250.0,0.00041422,120]
[394056737,1763235072922,250.0,0.00041422,120]
[394056738,1763235073053,250.0,0.00041422,120]
[394056739,1763235073587,250.0,0.00041422,120]
[394056740,1763235073713,250.0,0.00041422,120]
[394056741,1763235074253,250.0,0.00041422,120]
[394056742,1763235074318,250.0,0.00041422,120]
[394056743,1763235074907,250.0,0.00041422,120]
[394056744,1763235074959,250.0,0.00041422,120]
[394056745,1763235075534,250.0,0.00041422,120]
[394056746,1763235076173,250.0,0.00041422,120]
[394056747,1763235076254,250.0,0.00041422,120]
[394056748,1763235076813,250.0,0.00041422,120]
[394056749,1763235076931,250.0,0.00041422,120]
[394056750,1763235077444,250.0,0.00041422,120]
[394056751,1763235078060,250.0,0.00041422,120]
[394056752,1763235078706,250.0,0.00041422,120]
[394056753,1763235079306,250.0,0.00041422,120]
[394056754,1763235079929,250.0,0.00041422,120]
[394056755,1763235083248,151.0,0.00041422,120]
[394056756,1763235083863,151.0,0.00041422,120]
[394056757,1763235084445,151.0,0.00041422,120]
[394056758,1763235084487,151.0,0.00041422,120]
[394056759,1763235085044,151.0,0.00041422,120]
[394056760,1763235085092,151.0,0.00041422,120]
[394056761,1763235085645,151.0,0.00041422,120]
[394056762,1763235085710,151.0,0.00041422,120]
[394056763,1763235086105,-1620.23,0.00024658,30]
[394056764,1763235086156,-228.93022402,0.00028477,30]
[394056765,1763235086181,-1620.23,0.00029704,30]
[394056766,1763235086205,-155.174935,0.00030369,31]
[394056767,1763235086228,-588.49,0.00030685,30]
[394056768,1763235086250,-216.0,0.00030713,120]
[394056769,1763235086273,-1000.0,0.00030725,120]
[394056770,1763235086296,-190.663465,0.00030796,31]
[394056771,1763235086319,-151.0,0.00030796,31]
[394056772,1763235086343,-151.0,0.00030796,31]
[394056773,1763235086365,-213.876581,0.00030796,31]
[394056774,1763235086593,-213.876581,0.00030796,31]
[394056775,1763235086616,-213.876581,0.00030796,31]
[394056776,1763235086638,-213.876581,0.00030796,31]
[394056777,1763235086660,-151.0,0.00030796,31]
[394056778,1763235086683,-170.809901,0.00030796,31]
[394056779,1763235086707,-360.0,0.00030921,120]
[394056780,1763235086730,-600.0,0.00030935,120]
[394056781,1763235086753,-318.18542228,0.00031,120]
[394056782,1763235086776,-174.0,0.00031176,120]
[394056783,1763235086800,-174.0,0.00031227,120]
[394056784,1763235086821,-347.0,0.00031435,120]
[394056785,1763235086845,-151.39,0.00031507,120]
[394056786,1763235086871,-151.0,0.00031699,31]
[394056787,1763235086893,-151.0,0.00031699,31]
[394056788,1763235086915,-151.0,0.00031699,31]
[394056789,1763235086940,-151.0,0.00031699,31]
[394056790,1763235086964,-235.050797,0.00031699,31]
[394056791,1763235086986,-151.0,0.00031699,31]
[394056792,1763235087008,-235.050797,0.00031699,31]
[394056793,1763235087030,-235.050797,0.00031699,31]
[394056794,1763235087052,-151.0,0.00031699,31]
[394056795,1763235087074,-235.050797,0.00031699,31]
[394056796,1763235087096,-151.0,0.00031699,31]
[394056797,1763235087119,-155.451642,0.00031699,31]
[394056798,1763235087143,-151.0,0.00031699,31]
[394056799,1763235087166,-151.0,0.00031999,31]
[394056800,1763235087190,-151.0,0.00031999,31]
[394056801,1763235087214,-159.622131,0.00031999,31]
[394056802,1763235087237,-151.0,0.00031999,31]
[394056803,1763235087260,-216.0,0.00032249,120]
[394056804,1763235087283,-1000.0,0.00032262,120]
[394056805,1763235087305,-360.0,0.00032468,120]
[394056806,1763235087328,-600.0,0.00032482,120]
[394056807,1763235087350,-174.0,0.00032735,120]
[394056808,1763235087374,-174.0,0.00032788,120]
[394056809,1763235087396,-261.514748,0.00032936,31]
[394056810,1763235087419,-151.0,0.00032936,31]
[394056811,1763235087442,-166.800694,0.00032936,31]
[394056812,1763235087465,-1258.995056,0.00032936,31]
[394056813,1763235087487,-1258.995056,0.00032936,31]
[394056814,1763235087512,-1258.995056,0.00032936,31]
[394056815,1763235087535,-1258.995056,0.00032936,31]
[394056816,1763235087560,-151.0,0.00032936,31]
[394056817,1763235087583,-151.0,0.00032936,31]
[394056818,1763235087606,-151.0,0.00032936,31]
[394056819,1763235087630,-151.0,0.00032936,31]
[394056820,1763235087652,-151.0,0.00032936,31]
[394056821,1763235087677,-151.0,0.00032936,31]
[394056822,1763235087700,-151.0,0.00032936,31]
[394056823,1763235087723,-151.0,0.00032936,31]
[394056824,1763235087746,-151.0,0.00032936,31]
[394056825,1763235087769,-151.0,0.00032936,31]
[394056826,1763235087792,-151.0,0.00032936,31]
[394056827,1763235087815,-208.716565,0.00032936,31]
[394056828,1763235087838,-347.0,0.00033007,120]
[394056829,1763235087864,-158.85,0.000332,30]
[394056830,1763235087889,-559.0,0.00034071,30]
[394056831,1763235087913,-558.0,0.00034071,30]
[394056832,1763235087938,-174.0,0.00034428,120]
[394056833,1763235087960,-150.62681378,0.000345,120]
[394056834,1763235087981,-174.0,0.00034521,30]
[394056835,1763235088004,-1620.23,0.00034751,30]
[394056836,1763235088027,-558.0,0.00035434,30]
[394056837,1763235088049,-209.1860858,0.00035628,120]
[394056838,1763235088071,-558.0,0.00035694,30]
[394056839,1763235088094,-151.0,0.00035936,31]
[394056840,1763235088116,-151.0,0.00035936,31]
[394056841,1763235088140,-151.0,0.00035936,31]
[394056842,1763235088164,-170.31756,0.00035936,31]
[394056843,1763235088185,-175.243991,0.00035936,31]
[394056844,1763235088207,-156.692914,0.00035936,31]
[394056845,1763235088230,-151.0,0.00035936,31]
[394056846,1763235088252,-170.31756,0.00035936,31]
[394056847,1763235088273,-170.31756,0.00035936,31]
[394056848,1763235088294,-170.31756,0.00035936,31]
[394056849,1763235088316,-151.0,0.00035936,31]
[394056850,1763235088340,-1171.375001,0.00035936,30]
[394056851,1763235088363,-151.0,0.00035936,31]
[394056852,1763235088386,-151.0,0.00035936,31]
[394056853,1763235088410,-1171.375001,0.00035936,30]
[394056854,1763235088433,-151.0,0.00035936,31]
[394056855,1763235088456,-1171.375001,0.00035936,30]
[394056856,1763235088479,-151.0,0.00035936,31]
[394056857,1763235088505,-158.712859,0.00035936,31]
[394056858,1763235088530,-1171.375001,0.00035936,30]
[394056859,1763235088555,-473.7554,0.00035936,31]
[394056860,1763235088577,-473.7554,0.00035936,31]
[394056861,1763235088600,-473.7554,0.00035936,31]
[394056862,1763235088622,-285.69320133,0.00035936,31]
[394056863,1763235088647,-473.7554,0.00035936,31]
[394056864,1763235088670,-151.0,0.00035936,31]
[394056865,1763235088692,-162.133631,0.00035936,31]
[394056866,1763235088715,-151.0,0.00035936,31]
[394056867,1763235088737,-222.030479,0.00035936,31]
[394056868,1763235088759,-151.0,0.00035936,31]
[394056869,1763235088782,-151.0,0.00035936,31]
[394056870,1763235088804,-151.0,0.00035936,31]
[394056871,1763235088828,-151.0,0.00035936,31]
[394056872,1763235088852,-151.0,0.00035936,31]
[394056873,1763235088882,-163.451954,0.00035936,31]
[394056874,1763235088904,-163.451954,0.00035936,31]
[394056875,1763235088927,-163.451954,0.00035936,31]
[394056876,1763235088952,-163.451954,0.00035936,31]
[394056877,1763235088975,-151.0,0.00035936,31]
[394056878,1763235088997,-151.80704518,0.00036,60]
[394056879,1763235089021,-478.96003305,0.00036,30]
[394056880,1763235089043,-151.0,0.00036062,31]
[394056881,1763235089065,-151.0,0.00036062,31]
[394056882,1763235089087,-151.0,0.00036062,31]
[394056883,1763235089109,-151.0,0.00036062,31]
[394056884,1763235089131,-151.0,0.00036062,31]
[394056885,1763235089153,-160.06848,0.00036062,31]
[394056886,1763235089175,-151.0,0.00036062,31]
[394056887,1763235089198,-151.0,0.00036062,31]
[394056888,1763235089219,-151.0,0.00036062,31]
[394056889,1763235089241,-174.0,0.00036149,120]
[394056890,1763235089262,-175.0,0.00036247,30]
[394056891,1763235089286,-158.85,0.000366,30]
[394056892,1763235089308,-558.0,0.00036797,30]
[394056893,1763235089343,-500.997914,0.00036986,31]
[394056894,1763235089364,-500.997914,0.00036986,31]
[394056895,1763235089387,-500.997914,0.00036986,31]
[394056896,1763235089408,-500.99792,0.00036986,31]
[394056897,1763235089432,-188.737272,0.00036986,31]
[394056898,1763235089455,-558.0,0.00037316,30]
[394056899,1763235089477,-151.0,0.000374,31]
[394056900,1763235089500,-151.0,0.000374,31]
[394056901,1763235089523,-151.0,0.000374,31]
[394056902,1763235089544,-151.0,0.000374,31]
[394056903,1763235089567,-151.0,0.000374,31]
[394056904,1763235089591,-151.0,0.000374,31]
[394056905,1763235089784,-151.0,0.000374,31]
[394056906,1763235089810,-151.0,0.000374,31]
[394056907,1763235089833,-151.0,0.000374,31]
[394056908,1763235089857,-151.0,0.000374,31]
[394056909,1763235089882,-151.0,0.000374,31]
[394056910,1763235089905,-151.0,0.000374,31]
[394056911,1763235089928,-151.0,0.000374,31]
[394056912,1763235089952,-151.0,0.000374,31]
[394056913,1763235089973,-511.67591007,0.00037439,30]
[394056914,1763235089995,-209.1860858,0.00037455,120]
[394056915,1763235090019,-558.0,0.0003816,30]
[394056916,1763235090042,-151.0,0.00038356,120]
[394056917,1763235090064,-151.0,0.00038356,120]
[394056918,1763235090086,-151.0,0.00038356,120]
[394056919,1763235090108,-151.0,0.00038356,120]
[394056920,1763235090130,-245.0,0.00038356,120]
[394056921,1763235090154,-151.0,0.000387,120]
[394056922,1763235090176,-151.0,0.000387,120]
[394056923,1763235090197,-213.876581,0.000387,120]
[394056924,1763235090219,-213.876581,0.000387,120]
[394056925,1763235090241,-213.876581,0.000387,120]
[394056926,1763235090263,-213.876578,0.000387,120]
[394056927,1763235090286,-151.0,0.000387,120]
[394056928,1763235090309,-151.72,0.00038716,120]
[394056929,1763235090333,-152.42,0.00038716,120]
[394056930,1763235090357,-151.72,0.00038816,120]
[394056931,1763235090381,-152.42,0.00038816,120]
[394056932,1763235090407,-223.859606,0.00038904,120]
[394056933,1763235090431,-223.859606,0.00038904,120]
[394056934,1763235090454,-223.859606,0.00038904,120]
[394056935,1763235090478,-223.859606,0.00038904,120]
[394056936,1763235090500,-151.0,0.00038904,120]
[394056937,1763235090522,-169.242445,0.00038904,120]
[394056938,1763235090547,-263.873412,0.00038904,120]
[394056939,1763235090572,-151.0,0.00038904,120]
[394056940,1763235090593,-220.72302,0.00038904,120]
[394056941,1763235090616,-263.873412,0.00038904,120]
[394056942,1763235090640,-377.911698,0.00038904,120]
[394056943,1763235090663,-151.0,0.00038904,120]
[394056944,1763235090687,-338.223926,0.00038904,120]
[394056945,1763235090709,-220.72302,0.00038904,120]
[394056946,1763235090732,-263.873412,0.00038904,120]
[394056947,1763235090755,-377.911698,0.00038904,120]
[394056948,1763235090779,-151.0,0.00038904,120]
[394056949,1763235090804,-151.0,0.00038904,120]
[394056950,1763235090827,-338.223926,0.00038904,120]
[394056951,1763235090850,-151.0,0.00038904,120]
[394056952,1763235090876,-151.0,0.00038904,120]
[394056953,1763235090901,-220.72302,0.00038904,120]
[394056954,1763235090925,-377.911698,0.00038904,120]
[394056955,1763235090949,-151.0,0.00038904,120]
[394056956,1763235090972,-263.873412,0.00038904,120]
[394056957,1763235090994,-338.223926,0.00038904,120]
[394056958,1763235091016,-151.0,0.00038904,120]
[394056959,1763235091039,-220.72302,0.00038904,120]
[394056960,1763235091063,-377.911698,0.00038904,120]
[394056961,1763235091087,-338.223926,0.00038904,120]
[394056962,1763235091110,-151.0,0.00038904,120]
[394056963,1763235091132,-191.713046,0.00038904,120]
[394056964,1763235091156,-151.0,0.00038904,120]
[394056965,1763235091178,-151.0,0.00038904,120]
[394056966,1763235091201,-151.0,0.00038904,120]
[394056967,1763235091222,-151.0,0.00038904,120]
[394056968,1763235091244,-157.20993,0.00038904,120]
[394056969,1763235091266,-159.699716,0.00038904,30]
[394056970,1763235091290,-151.72,0.00038916,120]
[394056971,1763235091313,-152.42,0.00038916,120]
[394056972,1763235091335,-151.0,0.00038936,120]
[394056973,1763235091356,-151.0,0.00038936,60]
[394056974,1763235091380,-151.0,0.00038936,120]
[394056975,1763235091402,-155.980338,0.00038936,120]
[394056976,1763235091425,-235.050797,0.00038936,120]
[394056977,1763235091447,-151.0,0.00038936,120]
[394056978,1763235091469,-235.050797,0.00038936,120]
[394056979,1763235091492,-235.050797,0.00038936,120]
[394056980,1763235091528,-151.0,0.00038936,120]
[394056981,1763235091550,-235.050797,0.00038936,120]
[394056982,1763235091572,-159.47094,0.00038936,120]
[394056983,1763235091594,-151.0,0.00038936,120]
[394056984,1763235091616,-558.0,0.00038939,90]
[394056985,1763235091638,-175.0,0.00039,30]
[394056986,1763235091661,-478.96003305,0.00039,120]
[394056987,1763235091692,-151.72,0.00039016,120]
[394056988,1763235091716,-152.42,0.00039016,120]
[394056989,1763235091739,-267.16864856,0.00039025,30]
[394056990,1763235091763,-151.72,0.00039116,120]
[394056991,1763235091787,-152.42,0.00039116,120]
[394056992,1763235091810,-156.661276,0.00039178,120]
[394056993,1763235091834,-151.0,0.00039178,120]
[394056994,1763235091859,-1258.995056,0.00039178,120]
[394056995,1763235091883,-1258.995056,0.00039178,120]
[394056996,1763235091906,-1258.995056,0.00039178,120]
[394056997,1763235091931,-1258.995055,0.00039178,120]
[394056998,1763235091954,-278.007036,0.00039178,120]
[394056999,1763235091978,-151.0,0.00039178,120]
[394057000,1763235092001,-151.0,0.00039178,120]
[394057001,1763235092024,-211.985157,0.00039178,120]
[394057002,1763235092047,-151.0,0.00039178,120]
[394057003,1763235092069,-151.0,0.00039178,120]
[394057004,1763235092091,-151.0,0.00039178,120]
[394057005,1763235092114,-189.517719,0.00039178,120]
[394057006,1763235092137,-151.0,0.00039178,120]
[394057007,1763235092159,-151.0,0.00039178,120]
[394057008,1763235092181,-151.0,0.00039178,120]
[394057009,1763235092205,-151.0,0.00039178,120]
[394057010,1763235092228,-151.0,0.00039178,120]
[394057011,1763235092251,-160.358528,0.00039178,120]
[394057012,1763235092275,-151.72,0.00039216,120]
[394057013,1763235092298,-152.42,0.00039216,120]
[394057014,1763235092320,-209.1860858,0.00039282,120]
[394057015,1763235092343,-151.72,0.00039316,120]
[394057016,1763235092366,-152.42,0.00039316,120]
[394057017,1763235092390,-150.0,0.00039336,120]
[394057018,1763235092412,-151.39,0.00039384,120]
[394057019,1763235092437,-151.72,0.00039416,120]
[394057020,1763235092464,-152.42,0.00039416,120]
[394057021,1763235092489,-158.85,0.000395,30]
[394057022,1763235092512,-151.72,0.00039516,120]
[394057023,1763235092537,-152.42,0.00039516,120]
[394057024,1763235092559,-558.0,0.00039523,90]
[394057025,1763235092582,-151.72,0.00039616,120]
[394057026,1763235092606,-152.42,0.00039616,120]
[394057027,1763235092631,-151.72,0.00039716,120]
[394057028,1763235092656,-152.42,0.00039716,120]
[394057029,1763235092681,-150.0,0.00039725,120]
[394057030,1763235092705,-150.0,0.00039731,120]
[394057031,1763235092735,-1620.23,0.00039798,30]
[394057032,1763235092760,-151.72,0.00039816,120]
[394057033,1763235092784,-152.42,0.00039816,120]
[394057034,1763235092807,-153.28410036,0.000399,30]
[394057035,1763235092836,-151.72,0.00039916,120]
[394057036,1763235093017,-152.42,0.00039916,120]
[394057037,1763235093040,-175.0,0.0004,30]
[394057038,1763235093064,-7373.0,0.0004,120]
[394057039,1763235093086,-200.0,0.0004,120]
[394057040,1763235093108,-244.22,0.0004,30]
[394057041,1763235093130,-150.0,0.0004,60]
[394057042,1763235093152,-151.0,0.0004,120]
[394057043,1763235093175,-151.0,0.0004,120]
[394057044,1763235093197,-151.0,0.0004,120]
[394057045,1763235093220,-278.152747,0.0004,120]
[394057046,1763235093241,-151.0,0.0004,120]
[394057047,1763235093264,-151.0,0.0004,120]
[394057048,1763235093289,-593.06,0.0004,30]
[394057049,1763235093316,-151.72,0.00040016,120]
[394057050,1763235093342,-152.42,0.00040016,120]
[394057051,1763235093365,-150.0,0.00040033,120]
[394057052,1763235093393,-300.0,0.00040075,98]
[394057053,1763235093418,-150.0,0.00040101,120]
[394057054,1763235093443,-151.72,0.00040116,120]
[394057055,1763235093468,-152.42,0.00040116,120]
[394057056,1763235093491,-677.68637483,0.00040127,30]
[394057057,1763235093518,-666.0,0.00040127,30]
[394057058,1763235093541,-666.0,0.00040127,30]
[394057059,1763235093563,-151.0,0.00040128,120]
[394057060,1763235093587,-151.0,0.00040128,120]
[394057061,1763235093611,-151.0,0.00040128,120]
[394057062,1763235093634,-170.31756,0.00040128,120]
[394057063,1763235093657,-170.043342,0.00040128,120]
[394057064,1763235093680,-170.31756,0.00040128,120]
[394057065,1763235093703,-170.31756,0.00040128,120]
[394057066,1763235093726,-170.31756,0.00040128,120]
[394057067,1763235093751,-151.0,0.00040128,120]
[394057068,1763235093777,-1171.375001,0.00040128,30]
[394057069,1763235093801,-246.661876,0.00040128,120]
[394057070,1763235093824,-184.739565,0.00040128,120]
[394057071,1763235093849,-1171.375001,0.00040128,30]
[394057072,1763235093877,-151.0,0.00040128,120]
[394057073,1763235093904,-1171.375001,0.00040128,30]
[394057074,1763235093927,-151.0,0.00040128,120]
[394057075,1763235093952,-1171.375001,0.00040128,30]
[394057076,1763235093975,-473.7554,0.00040128,120]
[394057077,1763235093998,-473.7554,0.00040128,120]
[394057078,1763235094021,-473.7554,0.00040128,120]
[394057079,1763235094044,-473.7554,0.00040128,120]
[394057080,1763235094069,-151.0,0.00040128,120]
[394057081,1763235094093,-208.970473,0.00040128,120]
[394057082,1763235094116,-151.0,0.00040128,120]
[394057083,1763235094137,-151.0,0.00040128,120]
[394057084,1763235094161,-151.0,0.00040128,120]
[394057085,1763235094185,-151.0,0.00040128,120]
[394057086,1763235094208,-201.94908,0.00040128,120]
[394057087,1763235094231,-163.451954,0.00040128,120]
[394057088,1763235094254,-163.451954,0.00040128,120]
[394057089,1763235094277,-163.451954,0.00040128,120]
[394057090,1763235094300,-163.451954,0.00040128,120]
[394057091,1763235094324,-151.0,0.00040128,120]
[394057092,1763235094348,-666.0,0.00040134,30]
[394057093,1763235094370,-666.0,0.00040134,30]
[394057094,1763235094394,-804.88893338,0.00040149,30]
[394057095,1763235094417,-666.0,0.00040149,30]
[394057096,1763235094443,-151.72,0.00040216,120]
[394057097,1763235094467,-152.42,0.00040216,120]
[394057098,1763235094492,-150.0,0.00040278,120]
[394057099,1763235094516,-151.72,0.00040316,120]
[394057100,1763235094540,-152.42,0.00040316,120]
[394057101,1763235094563,-151.72,0.00040416,120]
[394057102,1763235094588,-152.42,0.00040416,120]
[394057103,1763235094612,-150.0,0.00040483,120]
[394057104,1763235094638,-151.72,0.00040516,120]
[394057105,1763235094663,-152.42,0.00040516,120]
[394057106,1763235094686,-237.83278585,0.00040594,50]
[394057107,1763235094708,-287.817,0.00040594,30]
[394057108,1763235094734,-151.72,0.00040616,120]
[394057109,1763235094759,-152.42,0.00040616,120]
[394057110,1763235094785,-151.72,0.00040716,120]
[394057111,1763235094809,-152.42,0.00040716,120]
[394057112,1763235094832,-353550.35039138,0.0004075,45]
[394057113,1763235094857,-151.0,0.0004075,120]
[394057114,1763235094885,-151.0,0.0004075,120]
[394057115,1763235094915,-151.0,0.0004075,120]
[394057116,1763235094941,-159.10466,0.0004075,120]
[394057117,1763235094965,-151.0,0.0004075,120]
[394057118,1763235094989,-151.0,0.0004075,120]
[394057119,1763235095013,-151.0,0.0004075,120]
[394057120,1763235095035,-151.0,0.0004075,120]
[394057121,1763235095058,-151.0,0.0004075,120]
[394057122,1763235095081,-151.0,0.0004075,120]
[394057123,1763235095106,-223.859606,0.0004075,120]
[394057124,1763235095128,-151.0,0.0004075,120]
[394057125,1763235095152,-223.859606,0.0004075,120]
[394057126,1763235095175,-223.859606,0.0004075,120]
[394057127,1763235095198,-223.859608,0.0004075,120]
[394057128,1763235095221,-151.0,0.0004075,120]
[394057129,1763235095245,-151.0,0.0004075,120]
[394057130,1763235095269,-151.0,0.0004075,120]
[394057131,1763235095292,-151.0,0.0004075,120]
[394057132,1763235095316,-263.873412,0.0004075,120]
[394057133,1763235095340,-151.0,0.0004075,120]
[394057134,1763235095364,-220.72302,0.0004075,120]
[394057135,1763235095388,-263.873412,0.0004075,120]
[394057136,1763235095411,-377.911698,0.0004075,120]
[394057137,1763235095435,-151.0,0.0004075,120]
[394057138,1763235095459,-338.223926,0.0004075,120]
[394057139,1763235095483,-220.72302,0.0004075,120]
[394057140,1763235095506,-263.873412,0.0004075,120]
[394057141,1763235095530,-377.911698,0.0004075,120]
[394057142,1763235095553,-151.0,0.0004075,120]
[394057143,1763235095577,-151.0,0.0004075,120]
[394057144,1763235095604,-338.223926,0.0004075,120]
[394057145,1763235095627,-151.0,0.0004075,120]
[394057146,1763235095652,-151.0,0.0004075,120]
[394057147,1763235095676,-220.72302,0.0004075,120]
[394057148,1763235095701,-377.911698,0.0004075,120]
[394057149,1763235095724,-151.0,0.0004075,120]
[394057150,1763235095748,-263.873408,0.0004075,120]
[394057151,1763235095771,-338.223926,0.0004075,120]
[394057152,1763235095796,-151.0,0.0004075,120]
[394057153,1763235095819,-220.723024,0.0004075,120]
[394057154,1763235095844,-377.911701,0.0004075,120]
[394057155,1763235095871,-338.223929,0.0004075,120]
[394057156,1763235095896,-151.0,0.0004075,120]
[394057157,1763235095921,-151.0,0.0004075,120]
[394057158,1763235095946,-151.0,0.0004075,120]
[394057159,1763235095972,-151.0,0.0004075,120]
[394057160,1763235095994,-151.0,0.0004075,120]
[394057161,1763235096019,-151.72,0.00040816,120]
[394057162,1763235096043,-152.42,0.00040816,120]
[394057163,1763235096065,-158.61475,0.00040821,120]
[394057164,1763235096088,-232.670028,0.00040821,60]
[394057165,1763235096112,-151.0,0.00040821,120]
[394057166,1763235096293,-235.050797,0.00040821,120]
[394057167,1763235096317,-173.237572,0.00040821,120]
[394057168,1763235096341,-235.050797,0.00040821,120]
[394057169,1763235096365,-235.050797,0.00040821,120]
[394057170,1763235096387,-151.0,0.00040821,120]
[394057171,1763235096410,-235.05079085,0.00040821,120]
[394057172,1763235096432,-157.889279,0.00040821,120]
[394057173,1763235096458,-150.0,0.0004087,120]
[394057174,1763235096480,-558.0,0.00040885,90]
[394057175,1763235096506,-151.72,0.00040916,120]
[394057176,1763235096530,-152.42,0.00040916,120]
[394057177,1763235096552,-150.0,0.00040973,60]
[394057178,1763235096574,-575.19852603,0.00041,30]
[394057179,1763235096596,-150.0,0.00041,45]
[394057180,1763235096619,-150.0,0.00041,60]
[394057181,1763235096644,-151.72,0.00041016,120]
[394057182,1763235096669,-152.42,0.00041016,120]
[394057183,1763235096692,-1000.0,0.00041095,90]
[394057184,1763235096715,-1143.62373965,0.00041095,90]
[394057185,1763235096738,-1000.0,0.00041095,90]
[394057186,1763235096762,-252.084824,0.00041096,45]
[394057187,1763235096787,-252.084824,0.00041096,45]
[394057188,1763235096810,-252.084824,0.00041096,45]
[394057189,1763235096834,-252.084824,0.00041096,45]
[394057190,1763235096860,-252.084824,0.00041096,45]
[394057191,1763235096887,-252.084824,0.00041096,45]
[394057192,1763235096913,-252.084824,0.00041096,45]
[394057193,1763235096939,-252.084824,0.00041096,45]
[394057194,1763235096963,-252.084824,0.00041096,45]
[394057195,1763235096988,-252.084824,0.00041096,45]
[394057196,1763235097012,-252.084824,0.00041096,45]
[394057197,1763235097036,-252.084824,0.00041096,45]
[394057198,1763235097060,-252.084824,0.00041096,45]